Cogmind - Beta 10.2 *** ADVENTURER MODE // 2021.10.21 @ 21:32:15 Player: Andrei Mikoyan Result: Self-destructed Performance ------------- Evolutions (1) 500 Regions Visited (2) 400 Robots Destroyed (22) 110 Value Destroyed (522) 522 Prototype IDs (0) 0 Alien Tech Used (0) 0 Bonus (0) 0 TOTAL SCORE: 1532 Bonus ------- None Cogmind --------- Core Integrity 206/400 Matter 28/300 Energy 85/100 System Corruption 0% Temperature Cool (0) Movement Walking (120) Location -9/Materials Parts ------- > --- POWER (2) -------- (None) > --- PROPULSION (2) --- Aluminum Leg Aluminum Leg > --- UTILITY (3) ------ Small Storage Unit Visual Processing Unit Signal Interpreter > --- WEAPON (2) ------- Rocket Launcher > --- INVENTORY (6) ---- Medium Battery (200) Peak State ------------ > --- POWER ------------ Light Ion Engine > --- PROPULSION ------- Aluminum Leg Aluminum Leg > --- UTILITY ---------- Small Storage Unit Visual Processing Unit Signal Interpreter > --- WEAPON ----------- Light Assault Rifle Grenade Launcher > --- INVENTORY -------- (None) [Rating: 9] Favorites ----------- Power Light Ion Engine Engine Light Ion Engine Propulsion Aluminum Leg Leg Aluminum Leg Utility Small Storage Unit Storage Small Storage Unit Processor Visual Processing Unit Weapon Light Assault Rifle Ballistic Gun Light Assault Rifle Launcher Grenade Launcher Build | -11 -10 -9 ------- Run | Scr Mat Mat Slots Evolved 2 | . . 2 Power 1 | . . 1 Propulsion . | . . . Utility 1 | . . 1 Weapon . | . . . Parts Attached 14 | 6 2 6 Power 2 | 1 1 . Engine 2 | 1 1 . Core . | . . . Reactor . | . . . Propulsion 4 | 2 . 2 Treads . | . . . Leg 4 | 2 . 2 Wheel . | . . . Hover . | . . . Flight . | . . . Utility 3 | 1 1 1 Device . | . . . Storage 1 | 1 . . Processor 2 | . 1 1 Hackware . | . . . Protection . | . . . Artifact . | . . . Weapon 5 | 2 . 3 Energy Gun . | . . . Energy Cannon . | . . . Ballistic Gun 3 | 2 . 1 Ballistic Cannon . | . . . Launcher 2 | . . 2 Special Weapon . | . . . Impact Weapon . | . . . Slashing Weapon . | . . . Piercing Weapon . | . . . Special Melee Weapon . | . . . Unidentified Prototypes . | . . . Parts Lost 7 | . 2 5 Power 2 | . 1 1 Propulsion 2 | . . 2 Utility . | . . . Weapon 3 | . 1 2 Highest Loss Streak 4 | . 2 4 Average Slot Usage (%) 77 | . 86 69 Engine 7 | . 10 4 Leg 22 | . 28 17 Storage 12 | . 14 11 Processor 16 | . 10 22 Ballistic Gun 11 | . 21 3 Launcher 5 | . . 10 Naked Turns . | . . . Heaviest Build 11 | 9 9 11 Greatest Support 20 | 20 20 20 Greatest Overweight (x) 2 | 2 . 1 Average Overweight (x) . | . . . Largest Inventory Capacity 6 | 6 6 6 Average Capacity 5 | 5 6 6 Most Carried 4 | 4 2 2 Average Carried . | 1 . . Final Capacity 6 | 6 6 6 Final Carried 2 | . 2 1 Class Distribution -------------------- 89% | Mutant 10% | Scavenger-Mutant Dominant Class ---------------- Mutant | -10/Materials Mutant | -9/Materials Resources | -11 -10 -9 ----------- Run | Scr Mat Mat Matter Collected 403 | 254 89 60 Remotely . | . . . Salvage Created 465 | . 281 184 Parts 38 | . 22 16 Haulers Intercepted . | . . . Recyclers Shooed . | . . . Parts Field Recycled . | . . . Retrieved Matter . | . . . Parts Self-Destructed . | . . . Prevented . | . . . Kills | -11 -10 -9 ------- Run | Scr Mat Mat Combat Hostiles Destroyed 17 | . 8 9 Guns 8 | . 8 . AOE 9 | . . 9 Classes Destroyed 6 | . 3 3 Builder 1 | . . 1 Recycler 1 | . . 1 Watcher 3 | . 2 1 Swarmer 7 | . 3 4 Grunt 7 | . 5 2 Sentry 3 | . . 3 Best Kill Streak 5 | . 4 5 Combat Bots Only 4 | . 4 4 Max Kills in Single Turn 3 | . 1 3 Gunslinging . | . . . Exploded 2 | . . 2 Melee . | . . . Uniques/NPCs Destroyed . | . . . Combat | -11 -10 -9 -------- Run | Scr Mat Mat Damage Taken 889 | . 294 595 Core 242 | . 48 194 Absorbed by Shields . | . . . Core Remaining (%) 90 | 100 80 . Volleys Fired 71 | . 43 28 Largest 2 | . 2 2 Hottest 50 | . 40 50 Shots Fired 107 | . 73 34 Gun 79 | . 73 6 Cannon . | . . . Launcher 28 | . . 28 Special . | . . . Kinetic 79 | . 73 6 Thermal . | . . . Explosive 28 | . . 28 Electromagnetic . | . . . Robot Hit Streak 18 | . 18 11 Robot Miss Streak 3 | . 3 1 Penetration Max . | . . . Secondary Targets 1 | . 1 . Max Gunslinging Chain 1 | . 1 . Shots Hit Robots 72 | . 51 21 Core Hits 54 | . 23 31 Critical Hits 3 | . 3 . Critical Kills 1 | . 1 . Critical Parts Destroyed 2 | . 2 . Melee Attacks . | . . . Impact . | . . . Slashing . | . . . Piercing . | . . . Sneak Attacks . | . . . Combat Hostiles . | . . . Follow-up Attacks . | . . . Damage Inflicted 1243 | . 427 816 Guns 452 | . 427 25 Cannons . | . . . Explosions 791 | . . 791 Melee . | . . . Ramming . | . . . Kinetic 452 | . 427 25 Thermal . | . . . Explosive 791 | . . 791 Electromagnetic . | . . . Impact . | . . . Slashing . | . . . Piercing . | . . . Highest Corruption . | . . . Average Corruption . | . . . Corruption Purged . | . . . Overload Shots . | . . . Overflow Damage 5 | . . 5 Projectiles . | . . . Explosions 5 | . . 5 Melee . | . . . Knockbacks . | . . . Impact . | . . . Kinetic . | . . . Secondary . | . . . Self-Inflicted Damage 60 | . . 60 Shots 3 | . . 3 Rammed . | . . . Targets Rammed . | . . . Kicked . | . . . Crushed . | . . . Highest Temperature 26 | . 12 26 Average Temperature 8 | . 6 12 Received Heat Transfer 393 | . 171 222 Siege Activations . | . . . Robots Corrupted . | . . . Combat Hostiles . | . . . Parts Fried . | . . . Impact Corruptions . | . . . Robots Melted . | . . . Combat Hostiles . | . . . Parts Melted . | . . . Heat Transferred . | . . . Parts Sabotaged . | . . . Parts Stolen . | . . . Parts Stripped . | . . . Power Chain Reactions . | . . . Missiles Intercepted . | . . . Alert | -11 -10 -9 ------- Run | Scr Mat Mat Peak Influence 371 | . 324 371 Initial 116 | . . 116 Average 220 | . 206 267 Maximum Alert Level 1 | . 1 1 Low Security (%) 33 | 100 45 12 Level 1 66 | . 54 87 Level 2 . | . . . Level 3 . | . . . Level 4 . | . . . Level 5 . | . . . High Security . | . . . Max Security . | . . . Squads Dispatched 2 | . 1 1 Investigation 1 | . 1 . Extermination . | . . . Reinforcement 1 | . . 1 Assault . | . . . Garrison . | . . . Intercept . | . . . Construction Impeded . | . . . Haulers Reinforced . | . . . Stealth | -11 -10 -9 --------- Run | Scr Mat Mat Distress Signals 1 | . . 1 Communications Jammed . | . . . Distress Signals . | . . . Times Spotted 32 | . 18 14 Peak Tracking Total 5 | . 5 5 Tactical Retreats 4 | . 4 . Traps | -11 -10 -9 ------- Run | Scr Mat Mat Traps Triggered 1 | . 1 . Indirectly . | . . . Trap Hack Attempts . | . . . Triggered . | . . . Disarmed . | . . . Reprogrammed . | . . . Reused . | . . . Traps Extracted . | . . . Installed . | . . . Triggered . | . . . Machines | -11 -10 -9 ---------- Run | Scr Mat Mat Machines Disabled 2 | . . 2 Max in Single Turn 1 | . . 1 Machines Sabotaged . | . . . Garrisons Compromised . | . . . Overloaded Fab Kills . | . . . Fab Network Shutdowns . | . . . Hacking | -11 -10 -9 --------- Run | Scr Mat Mat Machines Accessed 1 | . . 1 Terminals . | . . . Fabricators . | . . . Repair Stations 1 | . . 1 Recycling Units . | . . . Scanalyzers . | . . . Garrison Access . | . . . Total Hacks 3 | . . 3 Successful 2 | . . 2 Failed 1 | . . 1 Catastrophic . | . . . Database Lockouts . | . . . Manual . | . . . Terminals . | . . . Fabricators . | . . . Repair Stations 3 | . . 3 Recycling Units . | . . . Scanalyzers . | . . . Garrison Access . | . . . Terminal Hacks . | . . . Fabricator Hacks . | . . . Repair Station Hacks 2 | . . 2 Scan Component 1 | . . 1 Repair 1 | . . 1 Recycling Unit Hacks . | . . . Scanalyzer . | . . . Garrison Access Hacks . | . . . Unauthorized Hacks . | . . . Terminals . | . . . Fabricators . | . . . Repair Stations . | . . . Recycling Units . | . . . Scanalyzers . | . . . Garrison Access . | . . . Data Cores Recovered . | . . . Used . | . . . Hacking Detections 1 | . . 1 Full Trace Events 1 | . . 1 Feedback Events . | . . . Feedback Blocked . | . . . Robot Schematics Acquired . | . . . Robots Built . | . . . Matter . | . . . Time . | . . . Total Robot Build Rating . | . . . Part Schematics Acquired . | . . . Parts Built . | . . . Matter . | . . . Time . | . . . Total Part Build Rating . | . . . Parts Repaired 1 | . . 1 Time 13 | . . 13 Parts Recycled . | . . . Recycled Matter . | . . . Retrieved Matter . | . . . Retrieved Components . | . . . Parts Scanalyzed . | . . . Part Schematics Acquired . | . . . Parts Damaged . | . . . Bothacking | -11 -10 -9 ------------ Run | Scr Mat Mat Used RIF Installer . | . . . Robots Hacked . | . . . Non-combat . | . . . Combat . | . . . Robot Hacks Applied . | . . . Relay Couplers Released . | . . . Robots Rewired . | . . . Allies Hacked . | . . . Hacks Repelled . | . . . Allies | -11 -10 -9 -------- Run | Scr Mat Mat Total Allies . | . . . Largest Group . | . . . Highest-Rated Group . | . . . Highest-Rated Ally . | . . . Total Orders . | . . . Ally Attacks . | . . . Total Damage . | . . . Kills . | . . . Allies Corrupted . | . . . Allies Melted . | . . . Intel | -11 -10 -9 ------- Run | Scr Mat Mat Robot Analysis Total . | . . . Derelict Logs Recovered . | . . . Drone Launches . | . . . Drone Recoveries . | . . . Exploration | -11 -10 -9 ------------- Run | Scr Mat Mat Turns Passed 761 | 61 324 376 Spaces Moved 474 | 55 181 238 Core 30 | 30 . . Treads . | . . . Legs 444 | 25 181 238 Wheels . | . . . Hover . | . . . Flight . | . . . Fastest Speed 50 | 50 120 120 Average Speed 120 | 92 120 127 Slowest Speed 150 | 150 120 150 Overloaded Moves . | . . . Propulsion Burnouts . | . . . Robots Hopped . | . . . Cave-ins Triggered . | . . . Exploration Rate (%) 19 | 3 33 22 Regions Visited 2 Branch Regions . Pre-discovered Areas . | . . . Known Exits Taken . | . . . Unknown Exits Taken 2 | 1 1 . Scrap Searched . | . . . Spaces Dug 6 | . . 6 Terrain Destroyed 125 | . . 125 Melee . | . . . Projectile . | . . . AOE 125 | . . 125 Terrain Rammed . | . . . Walls Destroyed . | . . . Machines Disabled . | . . . Actions | -11 -10 -9 --------- Run | Scr Mat Mat Total 571 | 64 229 278 Wait 1 | . . 1 Move 472 | 54 180 238 Hop . | . . . Pick Up 13 | 4 4 5 Fast Attach 2 | 2 . . Attach 12 | 4 2 6 Detach . | . . . Swap . | . . . Drop . | . . . Fire 71 | . 43 28 Melee . | . . . Ram . | . . . Kick . | . . . Crush . | . . . Escape Stasis . | . . . Rewire . | . . . Trap . | . . . Miscellaneous . | . . . Route ------- -11/Scrapyard -10/Materials -9/Materials History --------- Turn | Location | Event 5 | -11/Scrapyard | Discovered new exit (range 15) 62 | -11/Scrapyard | Entered Materials 310 | -10/Materials | Build established: Mutant 355 | -10/Materials | Discovered new exit (range 12) 386 | -10/Materials | Entered another Materials area 386 | -9/Materials | Evolved 2 slots: Power x1, Utility x1 416 | -9/Materials | Repaired Lgt. Assault Rifle? 607 | -9/Materials | Lost 4 parts (1p1n2w) 762 | -9/Materials | Self-destructed Last Messages --------------- 00696_ Scanalyzer disabled. 00701_ The unstable cave ceiling collapses. 00703_ Aluminum Leg destroyed. 00724_ T-07 Excavator is excavating. 00731_ U-05 Engineer lays Concrete. 00737_ U-05 Engineer builds a Wall. 00737_ U-05 Engineer lays Concrete. 00742_ Acquired 23 matter. 00744_ U-05 Engineer lays Concrete. 00745_ Acquired 17 matter. 00745_ U-05 Engineer builds a Wall. 00748_ U-05 Engineer builds a Door. 00748_ U-05 Engineer builds a Wall. 00750_ U-05 Engineer lays Concrete. 00751_ Y-45 Defender destroyed. 00752_ U-05 Engineer builds a Wall. 00753_ U-05 Engineer lays Concrete. 00754_ U-05 Engineer builds a Wall. 00760_ Acquired Aluminum Leg. 00761_ U-05 Engineer lays Concrete. Map ----- +----------------------------------------------------+ | | | | | | | | | | | | | | | | | | | | | | | | | | | | | | | ?????????????????????????????????????????????????? | | #????????????????????????????????????????????????? | | #????????????????????????????????????????????????? | | #???????????????????????#######??####?????????#### | | ######################### ### ## #?????????# | | + # = ############ | | ################# # u# | | #???????????????# # " # # ######## | | #????????######## # [# # #??# | | #????????# # # ! u# # #??# | | #########?# # # @ # ### #?? | | + # ##/##+# #?## #?# | | ######### # ###########?# " | | ""#???????# # ##### # # #????# | | T"#???????# # ##?# # # #????# | | ""#??????### ## #### # # #????# | | ## ### # ## # # """ /#????###### | | + # # """ #?????????? | | #### #### # # # + + """ !#?????????? | | ???#####?## ## # ####### ##########?????????? | | ??????????#### #?????# #??????????????????? | | ????????????## # ## ????#####??????????????????? | | ????????????# #?# ??????????????????????????? | | ??????????? T ?? ?????????????????????????? | | ??????????### ??# ????????????????????????? | | ????????????##+#??# ##???????????????????????? | | ??????????????????#### ##????????????????????????? | | ?????????????????????? #?????????????????????????? | | ?????????????????????? #?????????????????????????? | | ???????????????????????#?????????????????????????? | | ?????????????????????????????????????????????????? | | ?????????????????????????????????????????????????? | | ?????????????????????????????????????????????????? | | ?????????????????????????????????????????????????? | | ?????????????????????????????????????????????????? | +----------------------------------------------------+ Best States ------------- Heat Dissipation 28 Energy Generation 10 Energy Capacity 125 Matter Stores 300 Matter Capacity 300 Sight Range 18 Terrain Scan Density 10 Resistance: KI 20 Resistance: TH 20 Resistance: EX 20 Resistance: EM 20 Resistance: I 20 Resistance: S 20 Resistance: P 20 Evasion (%) 50 Offensive Hacking 10 Item Schematics ----------------- None Robot Schematics ------------------ None Fabricated ------------ Nothing Alien Tech Used ----------------- None Achievements -------------- None Challenges ------------ None Game ------ Seed SupercompositeGuidanceFrame Manual? 0 Play Time 00:16:18 Cumulative 3.7 hours Start 2021.10.21 @ 01:53:29 End 2021.10.21 @ 21:32:15 Sessions 3 Manual Loads 0 Difficulty Adventurer Special Mode None Game No. 13 Rogue 12 Adventurer 1 Explorer 0 Win Type - Total 0 Types 0/0/0/0/0/0/0/0/0 Lore% 0 Gallery% 4 Achievement% 2 Wizard Run 0 Options --------- ASCII 0 Keyboard 0 Movement Mouse Keybinds 0 Fullscreen 1 Font 24/Proggy Map View 76x50 Tactical HUD 1 Map Filters NONE Filters NONE Steam 1 RUN: 2d75346f-ec94-498d-a373-e43e78362a8d